fUST/lending_fUST_20251125
["ID","MTS","AMOUNT","RATE_DAILY","PERIOD"]
[394860974,1764024673062,-1400.18636384,8.364e-05,2]
[394860995,1764024673242,-1400.18636384,8.364e-05,2]
[394861000,1764024673282,-1400.18636384,8.364e-05,2]
[394861005,1764024673321,-1400.18636384,8.364e-05,2]
[394861010,1764024673360,-1400.18636384,8.364e-05,2]
[394861016,1764024673400,-1400.18636384,8.364e-05,2]
[394861021,1764024673440,-1400.18636384,8.364e-05,2]
[394861026,1764024673478,-1400.18636384,8.364e-05,2]
[394861052,1764024673722,626.83,2.5e-05,2]
[394861070,1764024673883,626.83,2.6e-05,2]
[394861096,1764024674116,626.83,2.6e-05,2]
[394861107,1764024674216,626.83,2.7e-05,2]
[394861118,1764024674308,626.83,2.7e-05,2]
[394861124,1764024674457,626.83,2.8e-05,2]
[394861151,1764024674720,626.83,2.8e-05,2]
[394861182,1764024674994,626.83,2.9e-05,2]
[394861212,1764024675272,626.83,2.9e-05,2]
[394861222,1764024675358,-241.5464534,8.367e-05,2]
[394861247,1764024675590,626.83,3e-05,2]
[394861292,1764024676011,626.83,3e-05,2]
[394861319,1764024676251,626.83,3.1e-05,2]
[394861392,1764024677043,626.83,3.1e-05,2]
[394861412,1764024677222,626.83,3.2e-05,2]
[394861418,1764024677267,502.19572659,8.343e-05,2]
[394861423,1764024677304,626.83,3.2e-05,2]
[394861446,1764024677508,626.83,3.3e-05,2]
[394861477,1764024677813,626.83,3.3e-05,2]
[394861495,1764024677971,230.11446587,8.343e-05,2]
[394861502,1764024678080,626.83,3.4e-05,2]
[394861532,1764024678384,626.83,3.4e-05,2]
[394861619,1764024679225,-204.41545471,8.367e-05,2]
[394861632,1764024679339,816.01173478,8.283e-05,2]
[394861665,1764024681000,-250.46335638,8.367e-05,2]
[394861666,1764024682652,-174.04848096,8.367e-05,2]
[394861667,1764024684726,-190.24228736,8.367e-05,2]
[394861668,1764024686869,500.0,8.343e-05,2]
[394861669,1764024687910,-223.05424406,8.367e-05,2]
[394861670,1764024689560,-288.47748175,8.367e-05,2]
[394861671,1764024692389,-175.94239484,8.367e-05,2]
[394861672,1764024695414,-408.24363004,8.367e-05,2]
[394861673,1764024696968,-156.92979705,8.367e-05,2]
[394861674,1764024699241,-159.21353985,8.367e-05,2]
[394861675,1764024701548,1056.55807276,8.283e-05,2]
[394861676,1764024701574,785.80550779,8.283e-05,2]
[394861677,1764024702514,-266.47809034,8.367e-05,2]
[394861680,1764024716009,-236.26636366,8.367e-05,2]
[394861681,1764024717675,-204.89698439,8.367e-05,2]
[394861682,1764024720407,-197.23116137,8.367e-05,2]
[394861683,1764024722596,-421.27662432,8.367e-05,2]
[394861684,1764024722881,300.0,8.366e-05,2]
[394861685,1764024723819,1064.08613961,8.283e-05,2]
[394861686,1764024724664,-233.33112594,8.367e-05,2]
[394861687,1764024729220,-334.19759011,8.367e-05,2]
[394861688,1764024731315,-217.36372703,8.367e-05,2]
[394861689,1764024734128,-172.04244832,8.367e-05,2]
[394861690,1764024735695,-329.89735343,8.367e-05,2]
[394861691,1764024737377,-194.0,8.367e-05,2]
[394861692,1764024739303,-323.1023012,8.367e-05,2]
[394861693,1764024741475,-211.43809544,8.367e-05,2]
[394861695,1764024742957,-418.24057732,8.367e-05,2]
[394861697,1764024744502,-214.45717503,8.367e-05,2]
[394861699,1764024744993,-3366.94407919,8.367e-05,2]
[394861700,1764024746091,2854.88984311,8.283e-05,2]
[394861701,1764024746557,-169.84559391,8.367e-05,2]
[394861702,1764024749502,-167.0,8.367e-05,2]
[394861703,1764024750966,-10000.01,8.367e-05,2]
[394861704,1764024751683,-288.0,8.367e-05,2]
[394861705,1764024753309,-285.22507849,8.367e-05,2]
[394861706,1764024754833,-255.95758958,8.367e-05,2]
[394861707,1764024757611,-243.80879632,8.367e-05,2]
[394861708,1764024760392,-366.57154754,8.367e-05,2]
[394861709,1764024761346,11200.01,8.283e-05,2]
[394861710,1764024763283,-169.69070441,8.367e-05,2]
[394861711,1764024765958,-304.39457765,8.367e-05,2]
[394861712,1764024768115,-362.57194709,8.367e-05,2]
[394861713,1764024769107,2464.95106293,8.283e-05,2]
[394861714,1764024770874,-209.92463222,8.367e-05,2]
[394861715,1764024772979,-210.33789322,8.367e-05,2]
[394861716,1764024775799,-311.52251825,8.367e-05,2]
[394861717,1764024777271,-191.6825148,8.367e-05,2]
[394861718,1764024784770,300.0,8.283e-05,2]
[394861719,1764024790987,-175.36913142,8.367e-05,2]
[394861720,1764024792989,1286.03950558,8.283e-05,2]
[394861722,1764024794289,-151.05144922,8.367e-05,2]
[394861723,1764024797420,-185.55938604,8.367e-05,2]
[394861724,1764024800187,-285.59235155,8.367e-05,2]
[394861725,1764024801771,-297.57231823,8.367e-05,2]
[394861726,1764024803421,-428.32198849,8.367e-05,2]
[394861727,1764024805684,-156.63332435,8.367e-05,2]
[394861728,1764024807275,-205.18627769,8.367e-05,2]
[394861729,1764024808152,300.0,8.283e-05,2]
[394861730,1764024809026,-323.17818243,8.367e-05,2]
[394861733,1764024815963,1110.89209119,8.283e-05,2]
[394861735,1764024821074,-199.08740762,8.367e-05,2]
[394861736,1764024823255,-229.07687745,8.367e-05,2]
[394861737,1764024825103,-225.26886514,8.367e-05,2]
[394861738,1764024826384,-282.16509359,8.367e-05,2]
[394861739,1764024828738,-174.41555747,8.367e-05,2]
[394861740,1764024830883,-300.0,8.367e-05,2]
[394861741,1764024830989,300.0,8.283e-05,2]
[394861742,1764024831949,160.0,5.8e-07,2]
[394861743,1764024832811,160.0,5.8e-07,2]
[394861744,1764024833619,-153.40096782,8.367e-05,2]
[394861745,1764024834041,160.0,5.8e-07,2]
[394861746,1764024835323,160.0,5.8e-07,2]
[394861747,1764024836363,160.0,5.8e-07,2]
[394861748,1764024837408,160.0,5.8e-07,2]
[394861749,1764024838450,160.0,5.8e-07,2]
[394861750,1764024838929,-437.34957932,8.367e-05,2]
[394861751,1764024839510,160.0,5.8e-07,2]
[394861752,1764024840633,160.0,5.8e-07,2]
[394861753,1764024840928,-211.99416352,8.367e-05,2]
[394861754,1764024841743,160.0,5.8e-07,2]
[394861755,1764024842247,300.0,8.366e-05,2]
[394861756,1764024842459,-343.69382013,8.367e-05,2]
[394861757,1764024845244,-225.99139943,8.367e-05,2]
[394861758,1764024847605,-230.35178999,8.367e-05,2]
[394861759,1764024850928,-261.94685521,8.367e-05,2]
[394861760,1764024853186,300.0,8.283e-05,2]
[394861761,1764024853413,-204.27251173,8.367e-05,2]
[394861762,1764024855373,-395.99571696,8.367e-05,2]
[394861763,1764024858559,-328.2104223,8.367e-05,2]
[394861764,1764024860437,-243.66628755,8.367e-05,2]
[394861765,1764024860979,300.0,8.283e-05,2]
[394861766,1764024864746,-401.86366203,8.367e-05,2]
[394861767,1764024876129,200.0,8.283e-05,2]
[394861768,1764024879329,500.0,8.366e-05,2]
[394861769,1764024879387,500.0,8.366e-05,2]
[394861770,1764024879437,500.0,8.366e-05,2]
[394861771,1764024879482,500.0,8.366e-05,2]
[394861772,1764024879526,500.0,8.366e-05,2]
[394861773,1764024879565,500.0,8.366e-05,2]
[394861774,1764024879623,500.0,8.366e-05,2]
[394861775,1764024879697,500.0,8.366e-05,2]
[394861776,1764024879744,500.0,8.366e-05,2]
[394861777,1764024879808,500.0,8.366e-05,2]
[394861778,1764024879858,500.0,8.366e-05,2]
[394861779,1764024879908,500.0,8.366e-05,2]
[394861780,1764024879973,500.0,8.366e-05,2]
[394861781,1764024880026,500.0,8.366e-05,2]
[394861782,1764024880084,500.0,8.366e-05,2]
[394861783,1764024880140,500.0,8.366e-05,2]
[394861784,1764024880190,500.0,8.366e-05,2]
[394861785,1764024880254,500.0,8.366e-05,2]
[394861786,1764024880300,608.43463841,8.366e-05,2]
[394861787,1764024880355,500.0,8.366e-05,2]
[394861788,1764024885213,-264.51342602,8.367e-05,2]
[394861789,1764024902052,300.0,8.366e-05,2]
[394861790,1764024902090,1200.0,8.366e-05,2]
[394861791,1764024906151,264.51342602,8.283e-05,2]
[394861792,1764024910350,20000.0,0.000111,3]
[394861793,1764024993949,348.67227091,8.366e-05,2]
[394861794,1764024996765,15261.59716185,8.267e-05,2]
[394861795,1764024996799,28668.84604768,8.267e-05,2]
[394861807,1764025121028,-359.36207344,8.266e-05,2]
[394861808,1764025123096,-297.7891571,8.266e-05,2]
[394861809,1764025204934,50000.0,0.000111,3]
[394861810,1764025209578,-542.84876946,8.266e-05,2]
[394861811,1764025209613,-398.0,8.266e-05,2]
[394861812,1764025209643,-500.0,8.266e-05,2]
[394861813,1764025209674,-483.00361788,8.266e-05,2]
[394861814,1764025260376,500.0,8.266e-05,2]
[394861815,1764025260436,500.0,8.266e-05,2]
[394861816,1764025260480,510.84346384,8.266e-05,2]
[394861817,1764025303995,162.611,8.102e-05,2]
[394861818,1764025316532,-171.70347637,8.267e-05,2]
[394861819,1764025318664,-161.57931809,8.267e-05,2]
[394861820,1764025369651,333.0,8.266e-05,2]
[394861821,1764025455148,152.1559917,8.184e-05,2]
[394861865,1764025544485,517.5,0.00014,10]
[394862034,1764025616099,-154.28755754,8.267e-05,2]
[394862035,1764025720994,-456.97894695,8.267e-05,2]
[394862036,1764025723901,-252.45609426,8.267e-05,2]
[394862037,1764025725933,-300.0,8.267e-05,2]
[394862038,1764025737741,1009.43504121,8.184e-05,2]
[394862039,1764025766629,-167.07545631,8.267e-05,2]
[394862040,1764025782638,167.07545631,8.184e-05,2]
[394862140,1764025810863,250.0,8.262e-05,2]
[394862143,1764025811441,250.0,8.262e-05,2]
[394862144,1764025812076,250.0,8.262e-05,2]
[394862145,1764025812745,250.0,8.262e-05,2]
[394862146,1764025813395,250.0,8.262e-05,2]
[394862147,1764025813942,500.0,8e-05,2]
[394862148,1764025814030,250.0,8.262e-05,2]
[394862151,1764025814678,250.0,8.262e-05,2]
[394862155,1764025815286,250.0,8.262e-05,2]
[394862156,1764025815953,257.14551164,8.262e-05,2]
[394862165,1764025824985,500.0,8e-05,2]
[394862198,1764025833950,500.0,8e-05,2]
[394862207,1764025838418,-905.78757059,8.267e-05,2]
[394862209,1764025838430,-845.02,8.267e-05,2]
[394862211,1764025838444,-100000.0,8.267e-05,2]
[394862213,1764025838456,-586.89717923,8.267e-05,2]
[394862215,1764025838467,-307.8364998,8.267e-05,2]
[394862217,1764025838478,-6701.44163661,8.267e-05,2]
[394862448,1764025840663,-39614.76261532,8.267e-05,2]
[394862565,1764025842055,-3e-08,8.267e-05,2]
[394862566,1764025842132,500.0,8e-05,2]
[394862567,1764025843534,300.0,9.949e-05,63]
[394862579,1764025846129,151.0,9.012e-05,7]
[394862587,1764025846642,-2160.2380269,8.267e-05,2]
[394862589,1764025846653,-18431.8608748,8.267e-05,2]
[394862590,1764025846665,-8860.01545162,8.267e-05,2]
[394862604,1764025854841,500.0,8.1e-05,2]
[394862605,1764025862201,300.0,8.266e-05,2]
[394862606,1764025866098,500.0,8.1e-05,2]
[394862615,1764025906860,167.87149598,8.266e-05,2]
[394862618,1764025913837,-599.99999997,8.267e-05,2]
[394862619,1764025915626,-220.13191091,8.267e-05,2]
[394862622,1764025918313,-282.03627464,8.267e-05,2]
[394862623,1764025920051,-468.29337435,8.267e-05,2]
[394862624,1764025922127,-435.29940294,8.267e-05,2]
[394862625,1764025922835,300.0,8.266e-05,2]
[394862626,1764025926389,-323.19201906,8.267e-05,2]
[394862653,1764025958899,-265.11714508,8.267e-05,2]
[394862654,1764025961280,-234.06841951,8.267e-05,2]
[394862655,1764025965998,-265.6615683,8.267e-05,2]
[394862656,1764025968188,-203.19679978,8.267e-05,2]
[394862657,1764025970321,-241.29289396,8.267e-05,2]
[394862658,1764025972564,-300.0,8.267e-05,2]
[394862659,1764025974866,-228.82068518,8.267e-05,2]
[394862660,1764025977211,-189.61737878,8.267e-05,2]
[394862661,1764025978865,-157.02132684,8.267e-05,2]
[394862662,1764025982323,300.0,8.266e-05,2]
[394862664,1764025989665,339.87203932,8.266e-05,2]
[394862665,1764025989698,160.12796068,8.266e-05,2]
[394862666,1764025989952,500.0,8.266e-05,2]
[394862667,1764025990493,500.0,8.266e-05,2]
[394862668,1764025990611,500.0,8.266e-05,2]
[394862670,1764025991465,500.0,8.266e-05,2]
[394862671,1764025991973,500.0,8.266e-05,2]
[394862672,1764025992285,500.0,8.266e-05,2]
[394862673,1764025992636,500.0,8.266e-05,2]
[394862674,1764025993152,500.0,8.266e-05,2]
[394862675,1764025994001,500.0,8.266e-05,2]
[394862676,1764025994318,500.0,8.266e-05,2]
[394862677,1764025994384,500.0,8.266e-05,2]
[394862678,1764025994453,500.0,8.266e-05,2]
[394862679,1764025994521,500.0,8.266e-05,2]
[394862680,1764025994602,500.0,8.266e-05,2]
[394862681,1764025994650,500.0,8.266e-05,2]
[394862682,1764025994702,500.0,8.266e-05,2]
[394862683,1764025994797,500.0,8.266e-05,2]
[394862684,1764025994863,500.0,8.266e-05,2]
[394862685,1764025994917,500.0,8.266e-05,2]
[394862686,1764025994994,339.88203932,8.266e-05,2]
[394862687,1764025995031,160.11796068,8.266e-05,2]
[394862688,1764025995110,500.0,8.266e-05,2]
[394862689,1764025995184,500.0,8.266e-05,2]
[394862690,1764025995238,500.0,8.266e-05,2]
[394862691,1764025995302,500.0,8.266e-05,2]
[394862692,1764025995360,500.0,8.266e-05,2]
[394862693,1764025995422,500.0,8.266e-05,2]
[394862694,1764025995755,500.0,8.266e-05,2]
[394862695,1764025995801,294.01879093,8.266e-05,2]
[394862696,1764026022156,500.0,8.266e-05,2]
[394862697,1764026022232,500.0,8.266e-05,2]
[394862698,1764026022283,500.0,8.266e-05,2]
[394862699,1764026022331,500.0,8.266e-05,2]
[394862700,1764026022379,500.0,8.266e-05,2]
[394862701,1764026022429,500.0,8.266e-05,2]
[394862702,1764026025395,3045.87324839,8.167e-05,2]
[394862703,1764026025424,10000.01,8.167e-05,2]
[394862704,1764026025452,10000.01,8.167e-05,2]
[394862705,1764026025480,10000.01,8.167e-05,2]
[394862706,1764026025507,10000.01,8.167e-05,2]
[394862707,1764026025535,10000.01,8.167e-05,2]
[394862708,1764026025561,10000.01,8.167e-05,2]
[394862709,1764026025588,10000.01,8.167e-05,2]
[394862710,1764026025615,10000.01,8.167e-05,2]
[394862711,1764026025642,10000.01,8.167e-05,2]
[394862712,1764026028016,-342.49350213,8.167e-05,2]
[394862713,1764026029571,-281.52322084,8.167e-05,2]
[394862714,1764026033852,-307.38928653,8.167e-05,2]
[394862715,1764026042845,158.09204692,8.085e-05,2]
[394862717,1764026048870,-300.0,8.166e-05,2]
[394862718,1764026048899,-53.72348023,8.167e-05,2]
[394862719,1764026050635,9841.91795308,8.085e-05,2]
[394862720,1764026050661,10000.01,8.085e-05,2]
[394862721,1764026050685,10000.01,8.085e-05,2]
[394862722,1764026052757,-168.12106932,8.085e-05,2]
[394862723,1764026054431,-2383.50257648,8.085e-05,2]
[394862724,1764026054526,-4767.00515296,8.085e-05,2]
[394862725,1764026054667,-465.99969408,8.085e-05,2]
[394862726,1764026055403,-169.87012045,8.167e-05,2]
[394862727,1764026058708,-249.97417293,8.004e-05,2]
[394862728,1764026062890,-486.02499505,8.004e-05,2]
[394862729,1764026066266,-166.0487598,8.004e-05,2]
[394862730,1764026068569,-316.62724063,8.004e-05,2]
[394862731,1764026070654,-306.00892903,8.004e-05,2]
[394862732,1764026072954,-250.12000624,8.004e-05,2]
[394862733,1764026074413,3636.13488808,7.924e-05,2]
[394862734,1764026074535,-181.65462226,8.004e-05,2]
[394862735,1764026076107,-231.14449367,8.004e-05,2]
[394862736,1764026080183,-163.49035014,8.004e-05,2]
[394862737,1764026084043,-512.5107319,8.004e-05,2]
[394862738,1764026086121,-167.07545631,8.004e-05,2]
[394862739,1764026089313,875.6207746,7.924e-05,2]
[394862743,1764026097014,843.07653835,7.924e-05,2]
[394862744,1764026153832,-300.0,8.004e-05,2]
[394862745,1764026155632,-326.88770865,8.004e-05,2]
[394862746,1764026253785,3305.527568,7.924e-05,2]
[394862747,1764026304569,-300.0,8.061e-05,2]
[394862748,1764026312773,150.0,7.98e-05,2]
[394862749,1764026363803,-275.98327703,8.061e-05,2]
[394862750,1764026363825,-115.23219808,8.102e-05,2]
[394862751,1764026365525,-55.51052963,8.102e-05,2]
[394862752,1764026365546,-189.04362858,8.142e-05,2]
[394862753,1764026369177,-215.34911615,8.142e-05,2]
[394862754,1764026371276,-423.3186485,8.142e-05,2]
[394862755,1764026483907,-300.0,8.141e-05,2]
[394862757,1764026501463,150.0,7.98e-05,2]
[394862770,1764026588867,-162.611,8.004e-05,2]
[394862771,1764026588889,-37.389,8.061e-05,2]
[394862789,1764026603900,-112.611,8.061e-05,2]
[394862790,1764026603921,-116.77093032,8.141e-05,2]
[394862792,1764026673938,-255.22906968,8.141e-05,2]
[394862793,1764026698441,-170.32787316,8.141e-05,2]
[394862794,1764026698474,-300.0,8.142e-05,2]
[394862795,1764026698508,-300.0,8.142e-05,2]
[394862796,1764026698541,-1200.0,8.142e-05,2]
[394862797,1764026698573,-300.0,8.142e-05,2]
[394862798,1764026702087,300.0,8.142e-05,2]
[394862799,1764026704181,1200.0,8.142e-05,2]
[394862821,1764026762274,300.0,8.142e-05,2]
[394862828,1764026783443,-500.0,8.143e-05,2]
[394862829,1764026783476,-500.0,8.143e-05,2]
[394862830,1764026783509,-500.0,8.143e-05,2]
[394862831,1764026783558,-500.0,8.143e-05,2]
[394862832,1764026783596,-500.0,8.143e-05,2]
[394862834,1764026802164,-175.52612746,8.162e-05,2]
[394862871,1764026933878,-341.23971693,8.162e-05,2]
[394862872,1764027007941,-154.46720897,8.164e-05,2]
[394862873,1764027012413,50000.0,0.000111,3]
[394862874,1764027026208,10000.01,8.067e-05,2]
[394862875,1764027026237,10000.01,8.067e-05,2]
[394862876,1764027026265,10000.01,8.067e-05,2]
[394862877,1764027026296,5000.0,8.067e-05,2]
[394862878,1764027026331,30459.34425368,8.067e-05,2]
[394862879,1764027026362,34489.54186064,8.067e-05,2]
[394862880,1764027027409,-193.91971429,8.067e-05,2]
[394862881,1764027028742,-154.46532985,8.067e-05,2]
[394862882,1764027030696,-288.44922164,8.067e-05,2]
[394862903,1764027031671,-317257.95472208,8.067e-05,2]
[394862904,1764027034009,-223.92906924,8.067e-05,2]
[394862905,1764027036269,-296.6093128,8.067e-05,2]
[394862918,1764027037631,-99961.5,8.067e-05,2]
[394862919,1764027037643,-5772.33741959,8.067e-05,2]
[394862961,1764027039785,-4839.90170282,8.067e-05,2]
[394862963,1764027039797,-2805.93710947,8.067e-05,2]
[394862984,1764027040725,-3e-08,8.067e-05,2]
[394863013,1764027045868,-656.16275011,8.067e-05,2]
[394863019,1764027263849,-370.59365011,8.065e-05,2]
[394863020,1764027265906,-170.59365011,8.065e-05,2]
[394863021,1764027268005,-129.81269978,8.065e-05,2]
[394863022,1764027268026,-299.59365011,8.065e-05,2]
[394863023,1764027310371,50000.0,0.000111,3]
[394863024,1764027329180,-300.0,8.065e-05,2]
[394863025,1764027329213,-1200.0,8.065e-05,2]
[394863026,1764027329246,-163.83197152,8.066e-05,2]
[394863027,1764027329278,-500.0,8.066e-05,2]
[394863028,1764027329315,-500.0,8.066e-05,2]
[394863029,1764027329356,-500.0,8.066e-05,2]
[394863030,1764027329392,-500.0,8.066e-05,2]
[394863031,1764027329425,-310.940023,8.066e-05,2]
[394863032,1764027329461,-500.0,8.066e-05,2]
[394863033,1764027329495,-500.0,8.066e-05,2]
[394863034,1764027329529,-500.0,8.066e-05,2]
[394863035,1764027329569,-500.0,8.066e-05,2]
[394863036,1764027329602,-500.0,8.066e-05,2]
[394863037,1764027329636,-500.0,8.066e-05,2]
[394863038,1764027329670,-500.0,8.066e-05,2]
[394863039,1764027329710,-500.0,8.066e-05,2]
[394863041,1764027375040,-233.27254159,8.065e-05,2]
[394863042,1764027378296,-66.72745841,8.065e-05,2]
[394863043,1764027378321,-294.16717652,8.066e-05,2]
[394863044,1764027380004,-205.83282348,8.066e-05,2]
[394863045,1764027380027,-114.46745078,8.066e-05,2]
[394863046,1764027402736,3319.81360197,7.985e-05,2]
[394863047,1764027417906,838.23624804,7.985e-05,2]
[394863048,1764027440649,300.0,7.984e-05,2]
[394863064,1764027462955,300.0,7.984e-05,2]
[394863065,1764027485850,4400.0,7.985e-05,2]
[394863066,1764027533824,-230.35804681,8.065e-05,2]
[394863067,1764027548901,-232.52992624,8.065e-05,2]
[394863068,1764027551981,-67.47007376,8.065e-05,2]
[394863069,1764027552004,-114.81816003,8.066e-05,2]
[394863070,1764027555260,219.94420471,7.966e-05,2]
[394863071,1764027557842,-154.18634423,8.066e-05,2]
[394863072,1764027560547,-116.52804496,8.066e-05,2]
[394863073,1764027560572,-213.32890638,8.066e-05,2]
[394863074,1764027562617,-254.97671908,8.066e-05,2]
[394863075,1764027569715,-31.69437454,8.066e-05,2]
[394863076,1764027569743,-254.78864184,8.066e-05,2]
[394863077,1764027572581,-214.07921356,8.066e-05,2]
[394863078,1764027575187,-31.1321446,8.066e-05,2]
[394863079,1764027575210,-213.50980859,8.066e-05,2]
[394863080,1764027607058,4828.50812449,8.062e-05,2]
[394863081,1764027610210,50000.0,0.000111,3]
[394863082,1764027610301,250.0,8.062e-05,2]
[394863083,1764027610340,2000.0,8.062e-05,2]
[394863084,1764027610943,1483.23415561,8.062e-05,2]
[394863085,1764027611128,-320.53733789,8.065e-05,2]
[394863086,1764027611286,250.0,8.062e-05,2]
[394863087,1764027613258,187.78006526,8.062e-05,2]
[394863088,1764027613382,500.0,8.062e-05,2]
[394863089,1764027613769,151.0,8.062e-05,2]
[394863090,1764027613890,-153.74419509,8.065e-05,2]
[394863091,1764027614935,307.8364998,8.062e-05,2]
[394863092,1764027615576,-323.48458614,8.065e-05,2]
[394863093,1764027619475,250.0,8.062e-05,2]
[394863094,1764027625532,151.0,8.062e-05,2]
[394863116,1764027774454,-185.82710459,8.065e-05,2]
[394863117,1764027789984,-158.90364742,8.065e-05,2]
[394863118,1764027791634,-57.50312887,8.065e-05,2]
[394863119,1764027791656,-184.87038473,8.065e-05,2]
[394863120,1764027793784,-115.12961527,8.065e-05,2]
[394863121,1764027793807,-130.71820131,8.066e-05,2]
[394863122,1764027795816,-155.7719901,8.066e-05,2]
[394863123,1764027795845,-19.21576107,8.066e-05,2]
[394863124,1764027798396,-159.7750899,8.066e-05,2]
[394863125,1764027799877,-210.10569669,8.066e-05,2]
[394863126,1764027801405,-110.90345234,8.066e-05,2]
[394863127,1764027801429,-59.23959632,8.066e-05,2]
[394863128,1764027804044,-283.66923729,8.066e-05,2]
[394863129,1764027811697,-157.09116639,8.066e-05,2]
[394863130,1764027811719,-30.17652304,8.066e-05,2]
[394863131,1764027813818,-380.21101348,8.066e-05,2]
[394863132,1764027815373,-89.61246348,8.066e-05,2]
[394863133,1764027815397,-195.78385601,8.066e-05,2]
[394863134,1764027833048,206.66940075,7.965e-05,2]
[394863135,1764027833790,-295.25583987,8.066e-05,2]
[394863136,1764027834578,5000.0,7.985e-05,2]
[394863137,1764027837126,-8.96030412,8.066e-05,2]
[394863138,1764027837149,-280.75640088,8.066e-05,2]
[394863141,1764027842591,919.66612124,7.985e-05,2]
[394863142,1764027846645,160.173842,0.00010434,3]
[394863143,1764027850463,300.0,7.984e-05,2]
[394863154,1764027879040,-300.0,8.065e-05,2]
[394863155,1764027879062,-125.93139114,8.066e-05,2]
[394863156,1764027891462,-167.37594063,8.066e-05,2]
[394863157,1764027893130,-63.39289072,8.066e-05,2]
[394863158,1764027893154,-207.29071494,8.066e-05,2]
[394863159,1764027895410,-256.950544,8.066e-05,2]
[394863160,1764027901433,-65.64701397,8.066e-05,2]
[394863161,1764027901464,-242.52867717,8.066e-05,2]
[394863162,1764027902015,300.0,8.065e-05,2]
[394863163,1764027902988,262.0,8.065e-05,2]
[394863164,1764027905017,-229.31639434,8.066e-05,2]
[394863165,1764027907451,-28.15492849,8.066e-05,2]
[394863166,1764027907475,-212.25808721,8.066e-05,2]
[394863167,1764027909717,-183.34281655,8.066e-05,2]
[394863168,1764027912402,50000.0,0.000111,3]
[394863169,1764027912583,-104.39909624,8.066e-05,2]
[394863170,1764027912623,-276.1880609,8.066e-05,2]
[394863171,1764027923399,-223.8119391,8.066e-05,2]
[394863172,1764027923434,-500.0,8.066e-05,2]
[394863173,1764027923478,-500.0,8.066e-05,2]
[394863174,1764027923515,-500.0,8.066e-05,2]
[394863175,1764027923551,-500.0,8.066e-05,2]
[394863176,1764027923595,-500.0,8.066e-05,2]
[394863177,1764027923636,-500.0,8.066e-05,2]
[394863178,1764027923678,-500.0,8.066e-05,2]
[394863179,1764027923720,-168.9275624,8.066e-05,2]
[394863180,1764027923763,-500.0,8.066e-05,2]
[394863181,1764027923804,-500.0,8.066e-05,2]
[394863182,1764027923845,-319.41486955,8.066e-05,2]
[394863183,1764027923878,-166.90189513,8.066e-05,2]
[394863201,1764027927614,500.0,8.066e-05,2]
[394863202,1764027927694,597.31997073,8.066e-05,2]
[394863203,1764027954283,-171.75570015,8.067e-05,2]
[394863204,1764027969795,-244.94068569,8.067e-05,2]
[394863205,1764027971273,-300.0,8.067e-05,2]
[394863206,1764027973493,-237.87090852,8.067e-05,2]
[394863207,1764027977305,-158.62007119,8.067e-05,2]
[394863208,1764027979317,-399.75413707,8.067e-05,2]
[394863209,1764027982136,-313.99772386,8.067e-05,2]
[394863221,1764027984799,-304.52639219,8.067e-05,2]
[394863277,1764027987695,-295.18610436,8.067e-05,2]
[394863278,1764027988963,-261.27290869,8.067e-05,2]
[394863279,1764027989405,991.67708407,7.986e-05,2]
[394863280,1764027990690,-247.63805974,8.067e-05,2]
[394863281,1764027993279,-325.04087426,8.067e-05,2]
[394863282,1764027994872,-166.86781778,8.067e-05,2]
[394863284,1764027997306,325.04087426,7.986e-05,2]
[394863285,1764027997523,-289.17207496,8.067e-05,2]
[394863286,1764028000268,-256.50747809,8.067e-05,2]
[394863288,1764028005295,-466.18737773,8.067e-05,2]
[394863289,1764028007125,-165.24290055,8.067e-05,2]
[394863290,1764028008862,-270.94374857,8.067e-05,2]
[394863291,1764028012610,932.2862643,7.986e-05,2]
[394863292,1764028013423,-328.96968256,8.067e-05,2]
[394863293,1764028014896,-225.48610451,8.067e-05,2]
[394863294,1764028017116,-161.94663041,8.067e-05,2]
[394863295,1764028020430,-209.09774364,8.067e-05,2]
[394863296,1764028020532,289.17207496,7.986e-05,2]
[394863297,1764028023361,-220.91308645,8.067e-05,2]
[394863298,1764028025560,-167.39675758,8.067e-05,2]
[394863299,1764028027592,-151.09398994,8.067e-05,2]
[394863300,1764028028568,1931.8588219,7.986e-05,2]